bitfinex/quotes_ETHUSD_20240702
["timestamp","ask_amount","ask_price","bid_price","bid_amount"]
[1719898402187,2.88868,3461.8,3461.7,1.371]
[1719898405508,2.88885,3461.6,3461.4,3.0]
[1719898405715,2.88885,3461.6,3461.5,1.371]
[1719898407275,3.88885,3461.6,3461.5,1.371]
[1719898407982,3.88885,3461.6,3461.5,1.50259537]
[1719898408809,2.8888,3461.7,3461.5,1.50259537]
[1719898409010,2.8888,3461.7,3461.6,0.821]
[1719898409517,2.8888,3461.7,3461.6,0.95261881]
[1719898414518,3.88867,3461.8,3461.6,0.95261881]
[1719898414817,3.88867,3461.8,3461.6,1.33655797]
[1719898416217,3.88867,3461.8,3461.7,0.55]
[1719898416218,1.0,3461.8,3461.7,0.55]
[1719898416597,1.0,3461.8,3461.7,0.68157193]
[1719898417283,2.88853,3462.0,3461.7,0.68157193]
[1719898417482,2.88853,3462.0,3461.9,0.821]
[1719898417907,2.88853,3462.0,3461.9,0.95257193]
[1719898420825,2.88836,3462.2,3461.9,0.95257193]
[1719898421137,2.88836,3462.2,3462.1,0.821]
[1719898421623,2.88836,3462.2,3462.1,0.95257193]
[1719898422524,1.18314619,3462.3,3462.1,0.95257193]
[1719898422701,1.18314619,3462.3,3462.1,1.28007912]
[1719898428301,1.18314619,3462.3,3462.1,0.95257193]
[1719898428902,5.15268,3462.6,3462.1,0.95257193]
[1719898428903,1.18314619,3462.5,3462.1,0.95257193]
[1719898429121,0.18314619,3462.7,3462.3,0.821]
[1719898429328,0.18314619,3462.7,3462.5,0.821]
[1719898429604,3.07106619,3462.7,3462.5,0.821]
[1719898429911,3.07106619,3462.7,3462.6,0.1314949]
[1719898430634,3.07106619,3462.7,3462.5,0.821]
[1719898430829,0.18314619,3462.7,3462.5,0.821]
[1719898431539,0.18314619,3462.7,3462.6,0.1314949]
[1719898431699,3.07105619,3462.7,3462.6,0.1314949]
[1719898435605,0.18314619,3462.7,3462.6,0.1314949]
[1719898435803,1.0,3462.8,3462.6,0.1314949]
[1719898436135,0.18314619,3463.1,3462.7,1.371]
[1719898436136,1.18314619,3463.1,3462.7,1.371]
[1719898436321,1.18314619,3463.1,3462.9,0.821]
[1719898436831,1.18314619,3463.1,3463.0,0.13118021]
[1719898438418,4.07072619,3463.1,3463.0,0.13118021]
[1719898441332,4.07072619,3463.1,3462.9,0.821]
[1719898441532,2.88766,3463.0,3462.9,0.821]
[1719898442708,2.88766,3463.0,3462.9,0.95218021]
[1719898444913,2.88766,3463.0,3462.9,0.13118021]
[1719898445350,3.88775,3462.9,3462.8,0.821]
[1719898445811,3.88775,3462.9,3462.8,0.95207977]
[1719898448511,1.0,3462.9,3462.8,0.95207977]
[1719898450444,3.88775,3462.9,3462.8,0.13107977]
[1719898450630,6.26025,3462.9,3462.8,0.13107977]
[1719898450816,6.26025,3462.9,3462.7,0.821]
[1719898451029,3.88775,3462.9,3462.8,0.13107977]
[1719898451240,3.88775,3462.9,3462.7,0.821]
[1719898451464,3.88775,3462.9,3462.8,0.13107977]
[1719898451962,3.88775,3462.9,3462.7,0.821]
[1719898452168,3.88775,3462.9,3462.8,0.13107977]
[1719898452446,3.88775,3462.9,3462.7,0.821]
[1719898452649,3.88775,3462.9,3462.8,0.1309894]
[1719898452854,3.88775,3462.9,3462.7,0.821]
[1719898453173,3.88775,3462.9,3462.8,0.1309894]
[1719898453522,3.88775,3462.9,3462.7,0.821]
[1719898453925,3.88775,3462.9,3462.8,0.1309894]
[1719898454228,3.88775,3462.9,3462.7,0.821]
[1719898454620,3.88775,3462.9,3462.8,0.1309894]
[1719898454839,3.88775,3462.9,3462.7,0.821]
[1719898455051,3.88775,3462.9,3462.8,0.1309894]
[1719898455283,3.88775,3462.9,3462.7,0.821]
[1719898455284,1.0,3462.9,3462.7,0.821]
[1719898455422,1.0,3462.9,3462.8,0.1309894]
[1719898455624,1.0,3462.9,3462.7,0.821]
[1719898455901,1.0,3462.9,3462.8,0.13095258]
[1719898456053,1.0,3462.9,3462.8,0.32083526]
[1719898456354,1.0,3462.9,3462.8,0.45178784]
[1719898460338,1.0,3462.9,3462.8,0.13095258]
[1719898460770,1.0,3462.9,3462.7,0.821]
[1719898460974,1.0,3462.9,3462.8,0.13035907]
[1719898461268,1.0,3462.9,3462.7,0.821]
[1719898461450,1.0,3462.9,3462.8,0.95135907]
[1719898465744,4.07089619,3462.9,3462.8,0.13035907]
[1719898466041,1.0,3462.7,3462.6,0.821]
[1719898466359,1.0,3462.7,3462.6,1.371]
[1719898467859,1.0,3462.7,3462.6,1.5014093]
[1719898471182,1.0,3462.7,3462.6,0.6804093]
[1719898471183,3.88791,3462.7,3462.6,0.6804093]
[1719898471349,3.88791,3462.7,3462.6,1.5014093]
[1719898479188,6.77582,3462.7,3462.6,0.1304093]
[1719898479484,6.77582,3462.7,3462.6,0.821]
[1719898479699,6.77582,3462.7,3462.6,0.95146618]
[1719898499085,6.95896619,3462.7,3462.6,0.13046618]
[1719898499285,6.95896619,3462.7,3462.0,5.71093883]
[1719898499286,2.88824,3462.4,3462.2,0.821]
[1719898499908,3.88824,3462.4,3462.2,0.821]
[1719898503477,2.88824,3462.4,3462.2,0.821]
[1719898504197,3.88824,3462.4,3462.2,0.821]
[1719898510117,2.88824,3462.4,3462.2,0.821]
[1719898512919,2.88824,3462.4,3462.3,0.13054317]
[1719898513082,2.88824,3462.4,3462.2,0.821]
[1719898513284,2.88824,3462.4,3462.3,0.13054317]
[1719898513510,2.88824,3462.4,3462.2,0.821]
[1719898513816,2.88824,3462.4,3462.3,0.13053982]
[1719898514220,2.88824,3462.4,3462.2,0.821]
[1719898514408,2.88824,3462.4,3462.3,0.13053982]
[1719898514782,2.88824,3462.4,3462.2,0.821]
[1719898514918,2.88824,3462.4,3462.3,0.13053982]
[1719898515120,2.88824,3462.4,3462.2,0.821]
[1719898515329,3.88824,3462.4,3462.3,0.13053982]
[1719898515500,3.88824,3462.4,3462.2,0.821]
[1719898515684,3.88824,3462.4,3462.3,0.13053982]
[1719898515885,3.88824,3462.4,3462.2,0.821]
[1719898516081,3.88824,3462.4,3462.3,0.13053982]
[1719898516315,3.88824,3462.4,3462.2,0.821]
[1719898516518,3.88824,3462.4,3462.3,0.13053982]
[1719898516693,3.88824,3462.4,3462.2,0.821]
[1719898516923,0.18314619,3462.7,3462.3,0.13053982]
[1719898517097,3.88786,3462.8,3462.5,0.821]
[1719898517313,3.88786,3462.8,3462.7,0.821]
[1719898517823,3.88786,3462.8,3462.7,0.95153982]
[1719898518022,2.88786,3462.8,3462.7,0.95153982]
[1719898518190,3.8877,3463.0,3462.7,0.95153982]
[1719898518385,0.18314619,3463.1,3462.9,0.821]
[1719898518386,3.07072619,3463.1,3462.9,0.821]
[1719898518593,2.88758,3463.1,3462.9,0.821]
[1719898518792,2.88758,3463.1,3463.0,0.13053982]
[1719898520207,1.18314619,3463.3,3463.0,0.13053982]
[1719898520400,1.18314619,3463.3,3463.2,0.821]
[1719898521155,1.18314619,3463.3,3463.2,0.95153982]
[1719898526638,4.07055619,3463.3,3463.2,0.13053982]
[1719898526998,4.07055619,3463.3,3463.1,0.821]
[1719898527199,4.07055619,3463.3,3463.2,0.13030556]
[1719898531842,4.07055619,3463.3,3463.2,0.17482995]
[1719898535634,1.18314619,3463.3,3463.2,0.17482995]
[1719898536112,4.07055619,3463.3,3463.2,0.17482995]
[1719898539826,4.07055619,3463.3,3463.1,0.821]
[1719898540217,4.07055619,3463.3,3463.2,0.17463251]
[1719898540728,4.07055619,3463.3,3463.1,0.821]
[1719898540925,4.07055619,3463.3,3463.2,0.17463251]
[1719898541115,4.07055619,3463.3,3463.1,0.821]
[1719898541313,4.07055619,3463.3,3463.2,0.17463251]
[1719898541519,4.07055619,3463.3,3463.1,0.821]
[1719898541734,4.07055619,3463.3,3463.2,0.17463251]
[1719898541948,4.07055619,3463.3,3463.1,0.821]
[1719898542132,4.07055619,3463.3,3463.2,0.17463251]
[1719898542336,4.07055619,3463.3,3463.1,0.821]
[1719898542517,4.07055619,3463.3,3463.2,0.17463251]
[1719898542717,4.07055619,3463.3,3463.1,0.821]
[1719898542920,4.07055619,3463.3,3463.2,0.17463251]
[1719898543135,4.07055619,3463.3,3463.1,0.821]
[1719898543341,4.07055619,3463.3,3463.2,0.17463251]
[1719898543540,4.07055619,3463.3,3463.1,0.821]
[1719898543742,4.07055619,3463.3,3463.2,0.17463251]
[1719898544054,4.07055619,3463.3,3463.1,0.821]
[1719898544551,4.07055619,3463.3,3463.2,0.17463251]
[1719898544723,4.07055619,3463.3,3463.1,0.821]
[1719898544923,4.07055619,3463.3,3463.2,0.17463251]
[1719898545121,4.07055619,3463.3,3463.1,0.821]
[1719898545321,4.07055619,3463.3,3463.2,0.17463251]
[1719898545661,4.07055619,3463.3,3463.1,0.821]
[1719898546065,4.07055619,3463.3,3463.2,0.17463251]
[1719898546354,4.07055619,3463.3,3463.1,0.821]
[1719898546555,4.07055619,3463.3,3463.2,0.17463251]
[1719898546856,4.07055619,3463.3,3462.6,2.4927]
[1719898547022,4.07055619,3463.3,3463.1,0.821]
[1719898547649,4.07055619,3463.3,3463.2,0.17463584]
[1719898549026,5.05237083,3463.3,3463.2,0.17463584]
[1719898556830,5.05237083,3463.3,3463.1,0.821]
[1719898557026,0.98181464,3463.2,3463.1,0.821]
[1719898558068,0.98184592,3463.2,3463.1,0.99563584]
[1719898561564,9.10044592,3463.2,3463.1,0.17463584]
[1719898561762,9.10044592,3463.2,3462.5,3.0]
[1719898561763,2.88795,3462.7,3462.5,3.0]
[1719898561964,2.88795,3462.7,3462.6,0.821]
[1719898562167,3.86971009,3462.7,3462.6,0.821]
[1719898563000,4.86971009,3462.7,3462.6,0.821]
[1719898563155,3.86971009,3462.7,3462.6,0.821]
[1719898564341,2.88795,3462.7,3462.6,0.821]
[1719898564671,3.86989718,3462.7,3462.6,0.821]
[1719898566453,1.16509337,3462.7,3462.6,0.821]
[1719898567842,0.18314619,3462.7,3462.6,0.821]
[1719898568848,1.18314619,3463.0,3462.6,0.821]
[1719898569050,0.98192611,3462.9,3462.6,0.3821]
[1719898569264,2.88762,3463.1,3462.6,0.3821]
[1719898569265,0.98192611,3462.8,3462.6,0.3821]
[1719898569469,2.88762,3463.1,3462.7,0.821]
[1719898569641,0.98191649,3463.0,3462.6,0.3821]
[1719898569841,0.98191649,3462.9,3462.7,0.27584]
[1719898570042,2.88762,3463.1,3462.8,0.821]
[1719898570242,0.98192855,3463.0,3462.7,0.27584]
[1719898570452,0.98192855,3462.9,3462.7,0.27584]
[1719898570759,0.98192855,3462.8,3462.7,0.27584]
[1719898570974,0.98192855,3462.8,3462.7,1.09684]
[1719898573056,0.98192855,3462.8,3462.7,1.82148588]
[1719898576373,1.0,3463.1,3462.7,1.82148588]
[1719898576579,0.98189848,3463.0,3462.9,0.821]
[1719898577178,0.98189848,3463.0,3462.9,0.99500224]
[1719898580246,0.98189848,3463.0,3462.9,1.21529646]
[1719898580471,1.0,3463.1,3462.9,1.21529646]
[1719898580684,1.0,3463.1,3463.0,0.821]
[1719898580882,2.16495914,3463.1,3463.0,0.821]
[1719898581057,2.16495914,3463.1,3462.9,0.39429646]
[1719898581058,2.16495914,3463.1,3462.9,0.22029422]
[1719898581251,1.0,3463.1,3463.0,0.99500224]
[1719898581451,1.98185717,3463.1,3463.0,0.99500224]
[1719898583390,0.98185717,3463.1,3463.0,0.99500224]
[1719898585867,1.0,3463.2,3463.0,0.99500224]
[1719898586063,0.98190983,3463.1,3463.0,0.99500224]
[1719898602306,1.16505602,3463.1,3463.0,0.17400224]
[1719898602536,10.13646462,3463.1,3463.0,0.17400224]
[1719898602674,2.88781,3462.9,3462.7,0.821]
[1719898603206,2.88781,3462.9,3462.8,0.16939396]
[1719898603505,3.86975377,3462.9,3462.7,0.821]
[1719898603710,3.86975377,3462.9,3462.8,0.16939396]
[1719898603711,2.88781,3462.9,3462.8,0.16939396]
[1719898603916,3.86975384,3462.9,3462.8,0.16939396]
[1719898604069,3.86975384,3462.9,3462.7,0.821]
[1719898604271,2.88767,3463.0,3462.8,0.16939396]
[1719898604615,0.98192717,3462.9,3462.8,0.99039396]
[1719898608428,0.98192717,3462.9,3462.8,0.16939396]
[1719898608716,0.98192717,3462.9,3462.6,0.821]
[1719898609008,3.88767,3463.0,3462.6,0.821]
[1719898609214,0.98194585,3462.9,3462.7,0.16939396]
[1719898609415,3.88767,3463.0,3462.7,0.16939396]
[1719898609712,0.98194563,3462.9,3462.7,0.16939396]
[1719898609880,3.88767,3463.0,3462.7,0.16939396]
[1719898610077,0.98194565,3462.9,3462.7,0.16939396]
[1719898610274,3.88767,3463.0,3462.7,0.16939396]
[1719898610534,0.9819449,3462.9,3462.7,0.16939396]
[1719898610704,3.88767,3463.0,3462.7,0.16939396]
[1719898610908,0.98194504,3462.9,3462.7,0.16939396]
[1719898611096,3.88767,3463.0,3462.7,0.16939396]
[1719898611296,0.98194504,3462.9,3462.7,0.16939396]
[1719898611507,0.98194449,3462.8,3462.7,0.16939396]
[1719898611678,6.36002068,3462.8,3462.7,0.16939396]
[1719898611881,1.18314619,3462.6,3462.2,7.43]
[1719898612077,5.37851619,3462.3,3461.6,2.287]
[1719898612300,1.0,3462.2,3462.0,0.821]
[1719898612511,1.0,3462.2,3461.6,2.287]
[1719898612821,1.0,3462.2,3461.9,0.821]
[1719898612977,3.07164619,3462.0,3461.5,7.43]
[1719898613188,3.07164619,3462.0,3461.8,0.821]
[1719898617926,3.07164619,3462.0,3461.9,0.16953118]
[1719898619102,0.18314619,3462.0,3461.9,0.16953118]
[1719898623222,1.18314619,3462.0,3461.9,0.16953118]
[1719898623923,1.0,3462.2,3461.9,0.16953118]
[1719898624106,1.0,3462.2,3462.0,0.821]
[1719898624509,1.0,3462.2,3462.1,0.17003998]
[1719898625933,1.0,3462.2,3462.1,0.821]
[1719898626140,1.0,3462.2,3462.1,0.99103998]
[1719898626810,6.53597619,3462.2,3462.1,0.17003998]
[1719898627018,6.53597619,3462.2,3462.0,0.821]
[1719898627330,6.53597619,3462.2,3462.1,0.17003998]
[1719898628735,6.53597619,3462.2,3461.9,0.821]
[1719898628902,6.53597619,3462.2,3462.1,0.17003998]
[1719898629102,6.53597619,3462.2,3461.9,0.821]
[1719898629313,2.88842,3462.1,3462.0,0.17003998]
[1719898629806,5.38342,3462.1,3462.0,0.17003998]
[1719898630005,5.38342,3462.1,3461.8,0.821]
[1719898630426,5.38342,3462.1,3461.9,0.17003998]
[1719898630933,5.38342,3462.1,3461.8,0.821]
[1719898631338,5.38342,3462.1,3461.9,0.17003998]
[1719898631703,5.38342,3462.1,3461.8,0.821]
[1719898631899,5.38342,3462.1,3461.9,0.17003998]
[1719898632215,5.38342,3462.1,3461.8,0.821]
[1719898632530,5.38342,3462.1,3461.9,0.17003998]
[1719898633028,5.38342,3462.1,3461.8,0.821]
[1719898633424,5.38342,3462.1,3461.9,0.17003998]
[1719898634025,5.38342,3462.1,3461.8,0.821]
[1719898634337,5.38342,3462.1,3461.9,0.17003998]
[1719898634826,5.38342,3462.1,3461.8,0.821]
[1719898635413,5.38342,3462.1,3461.9,0.17005001]
[1719898635831,5.38342,3462.1,3461.8,0.821]
[1719898636203,5.38342,3462.1,3461.9,0.17005001]
[1719898636697,5.38342,3462.1,3461.8,0.821]
[1719898636903,5.38342,3462.1,3461.9,0.17005001]
[1719898637133,5.38342,3462.1,3461.8,0.821]
[1719898637508,5.38342,3462.1,3461.9,0.17005001]
[1719898637718,5.38342,3462.1,3461.8,0.821]
[1719898638118,5.38342,3462.1,3461.9,0.17005001]
[1719898638337,5.38342,3462.1,3461.8,0.821]
[1719898638836,5.38342,3462.1,3461.9,0.17005001]
[1719898639238,5.38342,3462.1,3461.8,0.821]
[1719898639737,5.38342,3462.1,3461.9,0.17005001]
[1719898640249,5.38342,3462.1,3461.8,0.821]
[1719898640552,5.38342,3462.1,3461.9,0.17005001]
[1719898640956,5.38342,3462.1,3461.8,0.821]
[1719898641326,5.38342,3462.1,3461.9,0.17005001]
[1719898641714,5.38342,3462.1,3461.8,0.821]
[1719898641915,5.38342,3462.1,3461.9,0.17005001]
[1719898642196,5.38342,3462.1,3461.8,0.821]
[1719898642451,3.88852,3462.0,3461.8,0.821]
[1719898642620,3.88852,3462.0,3461.9,0.17005001]
[1719898646017,2.8886,3461.9,3461.8,0.17006674]
[1719898646209,6.72271662,3461.9,3461.8,0.17006674]
[1719898646518,2.88892,3461.5,3461.3,0.821]
[1719898646714,2.88892,3461.5,3461.4,0.17006674]
[1719898647325,3.88892,3461.5,3461.4,0.17006674]
[1719898648614,2.88892,3461.5,3461.4,0.17006674]
[1719898649446,3.88892,3461.5,3461.4,0.17006674]
[1719898661123,2.88892,3461.5,3461.4,0.17006674]
[1719898661331,3.88892,3461.5,3461.4,0.17006674]
[1719898661756,6.77784,3461.5,3461.4,0.17006674]
[1719898661923,10.36285062,3461.5,3461.4,0.17006674]
[1719898662255,3.07261619,3460.9,3460.7,0.821]
[1719898662555,3.07261619,3460.9,3460.8,0.1704284]
[1719898663075,1.0,3461.0,3460.7,0.821]
[1719898663428,1.0,3461.0,3460.9,0.821]
[1719898663947,1.0,3461.0,3460.9,0.9914284]
[1719898671181,4.07226619,3461.3,3460.9,0.9914284]
[1719898671327,4.07226619,3461.3,3461.1,0.821]
[1719898671667,4.07226619,3461.3,3461.2,0.170549]
[1719898672039,4.07226619,3461.3,3461.1,0.821]
[1719898672228,4.07226619,3461.3,3461.2,0.170549]
[1719898672962,4.07226619,3461.3,3460.9,0.40331156]
[1719898673138,4.07226619,3461.3,3461.2,0.170549]
[1719898673468,2.88917,3461.2,3461.1,0.821]
[1719898676067,4.07224619,3461.3,3461.1,0.821]
[1719898677993,4.07224619,3461.3,3461.2,0.170549]
[1719898678865,4.07224619,3461.3,3461.1,0.821]
[1719898679083,4.07224619,3461.3,3461.2,0.170549]
[1719898679446,4.07224619,3461.3,3461.1,0.821]
[1719898679647,4.07224619,3461.3,3461.2,0.170549]
[1719898679972,1.18314619,3461.3,3461.1,0.821]
[1719898680176,1.18314619,3461.3,3461.2,0.170549]
[1719898680685,1.18314619,3461.3,3461.1,0.821]
[1719898680987,1.18314619,3461.3,3461.2,0.170549]
[1719898681379,1.18314619,3461.3,3461.1,0.821]
[1719898681578,1.18314619,3461.3,3461.2,0.17057243]
[1719898681979,1.18314619,3461.3,3461.1,0.821]
[1719898682176,1.18314619,3461.3,3461.2,0.17057243]
[1719898682689,1.18314619,3461.3,3461.1,0.821]
[1719898682980,1.18314619,3461.3,3461.2,0.17057243]
[1719898683364,1.18314619,3461.3,3461.1,0.821]
[1719898683540,1.18314619,3461.3,3461.2,0.17057243]
[1719898683983,1.18314619,3461.3,3461.1,0.821]
[1719898684178,1.18314619,3461.3,3461.2,0.17057243]
[1719898684549,1.18314619,3461.3,3461.1,0.821]
[1719898684763,1.18314619,3461.3,3461.2,0.17057243]
[1719898685567,1.18314619,3461.3,3461.1,0.821]
[1719898685780,1.18314619,3461.3,3461.2,0.17057243]
[1719898686182,1.18314619,3461.3,3461.1,0.821]
[1719898686354,0.18314619,3461.3,3461.2,0.17057243]
[1719898686786,0.18314619,3461.3,3461.1,0.821]
[1719898686952,0.18314619,3461.3,3461.2,0.17057243]
[1719898687148,0.18314619,3461.3,3461.0,2.8893]
[1719898687345,0.18314619,3461.3,3461.1,0.99157243]
[1719898694202,1.18314619,3461.3,3461.1,0.99157243]
[1719898699204,0.18314619,3461.3,3461.1,0.99157243]
[1719898702610,0.98107833,3461.2,3461.1,0.99157243]
[1719898704887,0.98107833,3461.2,3461.1,0.98774621]
[1719898713324,0.98107833,3461.2,3461.1,0.16674621]
[1719898713526,0.98107833,3461.2,3460.9,0.821]
[1719898713717,1.98107833,3461.1,3461.0,0.17042479]
[1719898714300,1.0,3461.1,3461.0,0.17042479]
[1719898714514,1.98108133,3461.1,3461.0,0.17042479]
[1719898715606,0.98108133,3461.1,3461.0,0.17042479]
[1719898720332,6.45217752,3461.1,3461.0,0.17042479]
[1719898720534,7.48631127,3461.1,3460.5,3.0]
[1719898720750,0.98108133,3461.0,3460.7,0.821]
[1719898721055,0.98108133,3460.9,3460.8,0.55]
[1719898721254,0.98108133,3460.9,3460.8,0.71960322]
[1719898723033,1.16422752,3460.9,3460.8,0.16960322]
[1719898723262,1.16422752,3460.9,3460.8,0.99060322]
[1719898723437,1.16422752,3460.9,3460.8,0.821]
[1719898723642,1.16422752,3460.9,3460.8,0.99075396]
[1719898724027,2.16422752,3460.9,3460.8,0.99075396]
[1719898724431,5.05364752,3460.9,3460.8,0.99075396]
[1719898725228,4.07256619,3460.9,3460.8,0.99075396]
[1719898725864,5.98959515,3460.9,3460.8,0.16975396]
[1719898726062,7.48561781,3460.9,3460.8,0.16975396]
[1719898726261,8.46656731,3460.9,3460.6,0.821]
[1719898726465,0.9809495,3460.8,3460.6,0.821]
[1719898727037,0.18314619,3459.8,3459.2,7.43]
[1719898727234,1.18314619,3459.8,3459.4,0.821]
[1719898727439,1.18314619,3459.8,3459.1,2.371]
[1719898727630,1.18314619,3459.8,3459.6,0.821]
[1719898727837,0.98043904,3459.7,3459.6,0.821]
[1719898728158,0.98043904,3459.7,3459.4,0.821]
[1719898728367,1.18314619,3459.8,3459.4,0.821]
[1719898728531,1.18314619,3459.8,3459.6,0.821]
[1719898728736,0.08109015,3459.7,3459.6,0.821]
[1719898738080,0.08109015,3459.7,3459.6,0.97389789]
[1719898749095,0.08109015,3459.7,3459.6,0.15289789]
[1719898749296,2.2569,3459.6,3459.4,3.0]
[1719898749486,2.2569,3459.6,3459.4,0.821]
[1719898750065,0.18314619,3459.5,3459.2,3.0]
[1719898750366,0.18314619,3459.5,3459.4,0.821]
[1719898752765,0.18314619,3459.5,3459.4,0.97454821]
[1719898755465,0.18314619,3459.5,3459.4,0.15354821]
[1719898755671,0.18314619,3459.5,3459.4,0.821]
[1719898755867,0.18314619,3459.5,3459.4,0.97454821]
[1719898756969,0.18314619,3459.7,3459.4,0.97454821]
[1719898757171,0.18314619,3459.7,3459.6,0.821]
[1719898757698,0.18314619,3459.7,3459.6,0.97454821]
[1719898761807,0.18314619,3459.9,3459.6,0.97454821]
[1719898761987,0.18314619,3459.9,3459.8,0.821]
[1719898763594,0.18314619,3459.9,3459.8,0.97456488]
[1719898766726,0.18314619,3459.9,3459.8,0.15356488]
[1719898770921,2.59804619,3459.9,3459.8,0.15356488]
[1719898771119,1.0,3459.8,3459.5,0.821]
[1719898771329,0.18314619,3459.7,3459.5,0.821]
[1719898771518,0.18314619,3459.7,3459.6,0.15356488]
[1719898789716,0.18314619,3459.7,3459.6,0.70356488]
[1719898789850,0.18314619,3459.7,3459.6,1.52456488]
[1719898791165,1.0,3459.8,3459.6,1.52456488]
[1719898791673,0.18314619,3459.7,3459.6,1.52456488]
[1719898792077,1.0,3459.8,3459.6,1.52456488]
[1719898792583,0.18314619,3459.7,3459.6,1.52456488]
[1719898794944,0.18314619,3459.7,3459.6,0.70356488]
[1719898795347,0.18314619,3459.7,3459.6,1.52456488]
[1719898806495,1.0,3459.8,3459.6,1.52456488]
[1719898806984,0.18314619,3459.7,3459.6,1.52456488]
[1719898812665,0.18314619,3459.7,3459.6,1.371]
[1719898812865,0.18314619,3459.7,3459.6,1.5194039]
[1719898823604,1.0,3459.8,3459.6,1.5194039]
[1719898825016,0.18314619,3459.7,3459.6,1.5194039]
[1719898831653,1.0,3459.8,3459.6,1.5194039]
[1719898832067,0.18314619,3459.7,3459.6,1.5194039]
[1719898832410,1.16417347,3459.7,3459.6,1.5194039]
[1719898833163,1.16417347,3459.7,3459.6,0.9694039]
[1719898834365,0.18314619,3459.9,3459.6,1.5194039]
[1719898834513,0.98104811,3459.8,3459.7,0.55]
[1719898834851,0.98104811,3459.8,3459.7,0.72878711]
[1719898835236,0.18314619,3459.9,3459.7,0.72878711]
[1719898835438,0.18314619,3459.9,3459.8,0.821]
[1719898835636,1.16421087,3459.9,3459.8,0.821]
[1719898836157,1.16421087,3459.9,3459.8,0.99978711]
[1719898839460,0.18314619,3459.9,3459.8,0.99978711]
[1719898848186,0.18314619,3460.3,3459.8,1.54978711]
[1719898848389,0.18314619,3460.3,3460.2,0.821]
[1719898848956,0.18314619,3460.3,3460.2,0.99973376]
[1719898852108,0.18314619,3460.8,3460.2,1.54973376]
[1719898852406,0.08112041,3460.8,3460.6,0.821]
[1719898852965,0.08112041,3460.8,3460.7,0.17867705]
[1719898853905,0.08112041,3460.8,3460.6,0.821]
[1719898854474,0.18314619,3460.7,3460.2,0.05779341]
[1719898854674,0.18314619,3460.7,3460.6,0.821]
[1719898855312,0.08112041,3460.8,3460.6,0.99967705]
[1719898859300,0.18314619,3460.7,3460.6,0.99967705]
[1719898859907,0.08112041,3460.8,3460.6,0.99967705]
[1719898873348,0.08112041,3460.8,3460.7,0.55]
[1719898873536,0.08112041,3460.8,3460.7,0.72844025]
[1719898874514,0.08112041,3460.8,3460.7,1.54944025]
[1719898889649,0.08112041,3460.8,3460.7,2.00438428]
[1719898900451,0.08112041,3460.8,3460.7,1.54944025]
[1719898902562,0.08112041,3460.8,3460.7,0.99944025]
[1719898902563,2.33782041,3460.8,3460.7,0.99944025]
[1719898902777,2.33782041,3460.8,3460.7,0.821]
[1719898903141,2.33782041,3460.8,3460.7,0.99939692]
[1719898904571,3.33782041,3460.8,3460.7,0.17839692]
[1719898904869,3.33782041,3460.8,3460.7,0.821]
[1719898905053,3.33782041,3460.8,3460.7,0.99939692]
[1719898908655,3.33782041,3460.8,3460.7,0.17839692]
[1719898908859,3.33782041,3460.8,3460.7,0.821]
[1719898911686,0.18314619,3460.7,3460.2,0.2940184]
[1719898911893,0.18314619,3460.7,3460.6,0.821]
[1719898912458,0.18314619,3460.7,3460.6,0.99945692]
[1719898916164,2.33782041,3460.8,3460.6,0.99945692]
[1719898916363,0.08112041,3460.8,3460.6,0.99945692]
[1719898921891,0.08112041,3460.8,3460.6,0.17845692]
[1719898922071,0.08112041,3460.8,3460.7,0.821]
[1719898922465,0.08112041,3460.8,3460.7,0.99943025]
[1719898925598,0.08112041,3460.8,3460.7,1.33474327]
[1719898926899,0.08112041,3460.8,3460.7,1.88474327]
[1719898927894,0.08025536,3460.8,3460.7,1.88474327]
[1719898932304,0.18314619,3461.3,3460.7,1.88474327]
[1719898932506,0.18314619,3461.3,3461.2,0.821]
[1719898933015,0.18314619,3461.3,3461.2,0.99360017]
[1719898933307,0.18314619,3461.3,3461.2,0.821]
[1719898934613,1.18314619,3461.3,3461.2,0.821]
[1719898935409,1.18314619,3461.5,3461.2,0.821]
[1719898935591,0.18314619,3461.5,3461.4,0.821]
[1719898937124,1.18314619,3461.5,3461.4,0.821]
[1719898938606,0.18314619,3461.5,3461.4,0.821]
[1719898939016,1.18314619,3461.5,3461.4,0.821]
[1719898940084,0.18314619,3461.5,3461.4,0.821]
[1719898941211,1.18314619,3461.5,3460.8,3.28662]
[1719898941530,1.18314619,3461.5,3461.4,0.821]
[1719898942314,1.18314619,3461.5,3461.4,0.99345015]
[1719898942815,0.18314619,3461.5,3461.4,0.99345015]
[1719898944225,0.18314619,3461.5,3461.4,0.17245015]
[1719898944422,0.18314619,3461.5,3461.4,0.99345015]
[1719898944720,0.18314619,3461.5,3461.4,0.99335348]
[1719898945293,1.18314619,3461.5,3461.4,0.17235348]
[1719898945494,1.18314619,3461.5,3460.9,1.165282]
[1719898945495,2.4315,3461.4,3460.8,3.0]
[1719898945702,2.4315,3461.4,3461.1,0.821]
[1719898946108,2.88909,3461.3,3460.5,3.0]
[1719898946291,2.88909,3461.3,3461.2,0.99335015]
[1719898946490,2.88909,3461.3,3461.2,0.821]
[1719898946720,2.88909,3461.3,3461.2,0.99335015]
[1719898947909,3.88909,3461.3,3461.2,0.99335015]
[1719898949606,3.07223619,3461.3,3461.2,0.17235015]
[1719898949803,0.18314619,3461.1,3460.4,2.2957]
[1719898949998,0.18314619,3461.1,3461.0,0.821]
[1719898960249,0.18314619,3461.1,3460.3,7.43]
[1719898960250,0.18314619,3460.5,3460.1,0.29351958]
[1719898960459,1.0,3460.9,3458.5,7.43]
[1719898960460,2.89,3460.2,3460.0,0.821]
[1719898960618,0.18314619,3460.1,3460.0,0.821]
[1719898961156,3.07306619,3460.3,3460.0,0.821]
[1719898961341,3.07306619,3460.3,3460.2,0.821]
[1719898961939,3.07306619,3460.3,3460.2,0.98192848]
[1719898967049,0.18314619,3460.3,3460.2,0.98192848]